Cogmind - Beta 15 @@@ ROGUE MODE // 2025.07.13 @ 19:53:27 Player: Suffixing Result: Destroyed by WI-3FK(R) with Subdweller Machine Gun Performance ------------- Evolutions (0) 0 Regions Visited (2) 400 Robots Destroyed (24) 120 Value Destroyed (527) 527 Prototype IDs (0) 0 Alien Tech Used (0) 0 Bonus (-62) -62 TOTAL SCORE: 985 Bonus ------- Friendly Fire -62 Cogmind --------- Core Integrity 0/250 Matter 300/300 Energy 100/100 System Corruption 0% Temperature Cool (0) Movement Treading (320) Ox2 Location -10/Subcaves Parts ------- > --- POWER (1) -------- (None) > --- PROPULSION (2) --- Light Treads > --- UTILITY (2) ------ High-capacity Storage Unit Power Shielding > --- WEAPON (2) ------- (None) > --- INVENTORY (20) --- Ion Engine Light Ion Engine Subdweller Power Source Light Treads Light Treads Light Treads Light Treads Subdweller Monowheel Flight Unit Flight Unit Flight Unit Flight Unit Structural Scanner Subdweller Optics Scrap Shield Datajack Peak State ------------ > --- POWER ------------ Light Ion Engine > --- PROPULSION ------- Light Treads Light Treads > --- UTILITY ---------- High-capacity Storage Unit Power Shielding > --- WEAPON ----------- Assault Rifle Assault Rifle > --- INVENTORY -------- Ion Engine Light Ion Engine Subdweller Power Source Light Treads Light Treads Light Treads Light Treads Subdweller Monowheel Flight Unit Flight Unit Flight Unit Flight Unit Structural Scanner Subdweller Optics Scrap Shield Assault Rifle Datajack [Rating: 9] Favorites ----------- Power Light Ion Engine Engine Light Ion Engine Propulsion Light Treads Treads Light Treads Leg Aluminum Leg Utility Power Shielding Storage High-capacity Storage Unit Protection Power Shielding Weapon Assault Rifle Ballistic Gun Assault Rifle Build | -11 -10 -10 ------- Run | Yrd Mat Sub Slots Evolved . | . . . Power . | . . . Propulsion . | . . . Utility . | . . . Weapon . | . . . Parts Attached 12 | 3 9 . Power 1 | . 1 . Engine 1 | . 1 . Core . | . . . Reactor . | . . . Propulsion 5 | 2 3 . Treads 5 | 2 3 . Leg . | . . . Wheel . | . . . Hover . | . . . Flight . | . . . Utility 2 | . 2 . Device . | . . . Storage 1 | . 1 . Processor . | . . . Hackware . | . . . Protection 1 | . 1 . Artifact . | . . . Weapon 4 | 1 3 . Energy Gun . | . . . Energy Cannon . | . . . Ballistic Gun 4 | 1 3 . Ballistic Cannon . | . . . Launcher . | . . . Special Weapon . | . . . Impact Weapon . | . . . Slashing Weapon . | . . . Piercing Weapon . | . . . Special Melee Weapon . | . . . Unidentified Prototypes . | . . . Parts Lost 6 | . 1 5 Power 2 | . 1 1 Propulsion 1 | . . 1 Utility . | . . . Weapon 3 | . . 3 Highest Loss Streak 5 | . 1 5 To Critical Strikes 1 | . . 1 Average Backups 11 | 4 10 14 Power 1 | 1 1 2 Propulsion 7 | 2 6 8 Utility 1 | . . 1 Weapon . | . . . Tool/Special . | . . . Unused Backups 25 | 5 6 14 Power 4 | . 1 3 Propulsion 12 | 2 3 7 Utility 4 | . 1 3 Weapon 4 | 3 1 . Tool/Special 1 | . . 1 Average Slot Usage (%) 98 | . 98 97 Engine 13 | . 14 12 Treads 27 | . 28 27 Storage 14 | . 14 14 Protection 13 | . 12 14 Ballistic Gun 27 | . 28 26 Peak Build Rating 9 | 6 8 9 Average Rating 7 | 6 7 8 On Entrance 6 | 6 6 8 Naked Turns . | . . . Heaviest Build 48 | 12 48 48 Greatest Support 40 | 40 40 40 Greatest Overweight (x) 1 | . 1 1 Average Overweight (x) . | . . 1 Largest Inventory Capacity 20 | 8 20 20 Average Capacity 17 | 8 17 20 Most Carried 20 | 6 14 20 Average Carried 11 | 4 10 14 Final Capacity 20 | 8 20 20 Final Carried 17 | 1 13 17 Class Distribution -------------------- 100% | Mutant Dominant Class ---------------- Mutant | -10/Materials Mutant | -10/Subcaves Resources | -11 -10 -10 ----------- Run | Yrd Mat Sub Matter Collected 701 | 252 405 44 Remotely . | . . . Salvage Created 864 | 99 750 15 Parts 59 | 1 57 1 Haulers Intercepted 2 | . 2 . Recyclers Shooed 4 | . 4 . Parts Field Recycled . | . . . Retrieved Matter . | . . . Parts Self-Destructed 11 | . . 11 Prevented . | . . . Kills | -11 -10 -10 ------- Run | Yrd Mat Sub Combat Hostiles Destroyed 18 | . 18 . Guns 18 | . 18 . Classes Destroyed 7 | 1 5 1 Builder 2 | . 2 . Hauler 2 | . 2 . Recycler 1 | 1 . . Operator 1 | . 1 . Swarmer 6 | . 6 . Grunt 12 | . 12 . Scientist 1 | . . 1 Best Kill Streak 3 | 1 3 . Combat Bots Only 3 | . 3 . Max Kills in Single Turn 1 | 1 1 1 Gunslinging . | . . . Exploded . | . . . Melee . | . . . Uniques/NPCs Destroyed . | . . . Combat | -11 -10 -10 -------- Run | Yrd Mat Sub Hostile Shots Fired 139 | . 105 34 Missed 39 | . 32 7 Hits 100 | . 73 27 Projectile 100 | . 73 27 Critical Strikes 2 | . . 2 Damage Taken 1361 | . 786 575 Core 262 | . 111 151 Absorbed by Shields . | . . . Redirected to Shielding 31 | . 23 8 Core Remaining (%) 100 | 100 . . Volleys Fired 94 | 6 79 9 Largest 2 | 2 2 2 Hottest 40 | 40 40 40 Shots Fired 188 | 12 158 18 Gun 188 | 12 158 18 Cannon . | . . . Launcher . | . . . Special . | . . . Kinetic 188 | 12 158 18 Thermal . | . . . Explosive . | . . . Electromagnetic . | . . . Robot Hit Streak 11 | 4 11 7 Robot Miss Streak 3 | 1 3 3 Penetration Max . | . . . Secondary Targets 3 | . 3 . Max Gunslinging Chain 1 | . 1 . Shots Hit Robots 128 | 8 107 13 Core Hits 51 | 2 46 3 Critical Kills . | . . . Critical Parts Destroyed . | . . . Critical Strikes . | . . . Melee Attacks . | . . . Impact . | . . . Slashing . | . . . Piercing . | . . . Sneak Attacks . | . . . Combat Hostiles . | . . . Follow-up Attacks . | . . . Damage Inflicted 1381 | 63 1221 97 Guns 1351 | 63 1201 87 Cannons . | . . . Explosions . | . . . Melee . | . . . Ramming 30 | . 20 10 Kinetic 1351 | 63 1201 87 Thermal . | . . . Explosive . | . . . Electromagnetic . | . . . Impact . | . . . Slashing . | . . . Piercing . | . . . Highest Corruption . | . . . Average Corruption . | . . . Corruption Purged . | . . . Corruption Blocked . | . . . Overload Shots . | . . . Overflow Damage . | . . . Projectiles . | . . . Explosions . | . . . Melee . | . . . Knockbacks . | . . . Impact . | . . . Kinetic . | . . . Secondary . | . . . Self-Inflicted Damage . | . . . Shots . | . . . Rammed 10 | . 2 8 Targets Rammed 10 | . 2 8 Kicked . | . . . Crushed . | . . . Highest Temperature 29 | . 29 . Average Temperature 13 | . 13 . Received Heat Transfer 384 | . 384 . Siege Activations . | . . . Martial Activations . | . . . Shielding Activations . | . . . Robots Disrupted . | . . . Combat Hostiles . | . . . Robots Corrupted . | . . . Combat Hostiles . | . . . Parts Fried . | . . . Impact Corruptions . | . . . Robots Melted . | . . . Combat Hostiles . | . . . Parts Melted . | . . . Heat Transferred . | . . . Parts Sabotaged . | . . . Parts Stolen . | . . . Parts Stripped . | . . . Power Chain Reactions . | . . . Alert | -11 -10 -10 ------- Run | Yrd Mat Sub Maximum Alert Level . | . . . Low Security (%) 100 | 100 100 . Level 1 . | . . . Level 2 . | . . . Level 3 . | . . . Level 4 . | . . . Level 5 . | . . . High Security . | . . . Max Security . | . . . Peak Influence 134 | 5 134 . Initial . | . . . Average 62 | 1 65 . Influence Increases 479 | 5 474 . Destroy 0b10 Robot/C 360 | . 360 . Destroy 0b10 Robot/NC 30 | 5 25 . Destroy Leader 74 | . 74 . Disable Machine 15 | . 15 . Influence Decreases 479 | 5 454 20 Entered New Map 10 | . . 10 Time Decay 459 | 5 444 10 Lost Part 10 | . 10 . Squads Dispatched 4 | . 4 . Investigation 1 | . 1 . Extermination . | . . . Reinforcement 3 | . 3 . Assault . | . . . Garrison . | . . . Intercept . | . . . Searches Triggered . | . . . Construction Impeded . | . . . Haulers Reinforced . | . . . Active Scanning Responses . | . . . Cargo Convoy Interrupts . | . . . Stealth | -11 -10 -10 --------- Run | Yrd Mat Sub Distress Signals 1 | . 1 . Communications Jammed . | . . . Distress Signals . | . . . Times Spotted 38 | . 37 1 Peak Tracking Total 5 | . 5 1 Tactical Retreats . | . . . Traps | -11 -10 -10 ------- Run | Yrd Mat Sub Traps Triggered 1 | . 1 . Indirectly . | . . . Trap Hack Attempts . | . . . Triggered . | . . . Disarmed . | . . . Reprogrammed . | . . . Reused . | . . . Traps Extracted . | . . . Installed . | . . . Triggered . | . . . Machines | -11 -10 -10 ---------- Run | Yrd Mat Sub Machines Disabled 1 | . 1 . Max in Single Turn 1 | . 1 . Machines Repaired . | . . . Machines Dismantled . | . . . Machines Sabotaged . | . . . Overloaded Fab Kills . | . . . Hacking | -11 -10 -10 --------- Run | Yrd Mat Sub Machines Accessed 2 | . 1 1 Terminals 1 | . 1 . Fabricators . | . . . Repair Stations . | . . . Recycling Units . | . . . Scanalyzers . | . . . Garrison Access . | . . . Total Hacks 9 | . 4 5 Successful 5 | . . 5 Failed 4 | . 4 . Catastrophic . | . . . Database Lockouts . | . . . Manual 5 | . 5 . Terminals 4 | . 4 . Fabricators . | . . . Repair Stations . | . . . Recycling Units . | . . . Scanalyzers . | . . . Garrison Access . | . . . Terminal Hacks 5 | . . 5 Record 5 | . . 5 Fabricator Hacks . | . . . Repair Station Hacks . | . . . Recycling Unit Hacks . | . . . Scanalyzer . | . . . Garrison Access Hacks . | . . . Unauthorized Hacks . | . . . Terminals . | . . . Fabricators . | . . . Repair Stations . | . . . Recycling Units . | . . . Scanalyzers . | . . . Garrison Access . | . . . Data Cores Recovered . | . . . Used . | . . . Hacking Detections 1 | . 1 . Full Trace Events 1 | . 1 . Feedback Events . | . . . Feedback Blocked . | . . . Robot Schematics Acquired . | . . . Robots Built . | . . . Authchips . | . . . Time . | . . . Total Robot Build Rating . | . . . Part Schematics Acquired . | . . . Parts Built . | . . . Authchips . | . . . Time . | . . . Total Part Build Rating . | . . . Parts Repaired . | . . . Time . | . . . Parts Recycled . | . . . Recycled Matter . | . . . Retrieved Matter . | . . . Retrieved Components . | . . . Parts Scanalyzed . | . . . Part Schematics Acquired . | . . . Parts Damaged . | . . . Bothacking | -11 -10 -10 ------------ Run | Yrd Mat Sub Used RIF Installer . | . . . Robots Hacked . | . . . Non-combat . | . . . Combat . | . . . Robot Hacks Applied . | . . . Relay Couplers Released . | . . . Fabnet Peak Effective % . | . . . Robots Rewired . | . . . Allies Hacked . | . . . Hacks Repelled . | . . . Allies | -11 -10 -10 -------- Run | Yrd Mat Sub Total Allies . | . . . Largest Group . | . . . Highest-Rated Group . | . . . Highest-Rated Ally . | . . . Total Orders . | . . . Ally Attacks . | . . . Total Damage . | . . . Kills . | . . . Allies Corrupted . | . . . Allies Melted . | . . . Intel | -11 -10 -10 ------- Run | Yrd Mat Sub Active Infowar (turns) . | . . . Robot Analysis Total . | . . . Derelict Logs Recovered . | . . . Drone Launches . | . . . Drone Recoveries . | . . . Exploration | -11 -10 -10 ------------- Run | Yrd Mat Sub Turns Passed 1959 | 58 1176 725 Spaces Moved 698 | 20 407 271 Core . | . . . Treads 698 | 20 407 271 Legs . | . . . Wheels . | . . . Hover . | . . . Flight . | . . . Fastest Speed 160 | 160 160 240 Average Speed 226 | 160 221 240 Slowest Speed 240 | 160 240 240 Overloaded Moves . | . . . Propulsion Burnouts . | . . . Robots Hopped . | . . . Potential Cave-ins . | . . . Cave-ins Triggered . | . . . Exploration Rate (%) 29 | 3 68 17 Regions Visited 2 Branch Regions 1 Pre-discovered Areas 1 | . . 1 Known Exits Taken . | . . . Unknown Exits Taken 2 | 1 1 . Scrap Searched . | . . . Spaces Dug . | . . . Terrain Destroyed . | . . . Melee . | . . . Projectile . | . . . AOE . | . . . Terrain Rammed . | . . . Walls Destroyed . | . . . Machines Disabled . | . . . Actions | -11 -10 -10 --------- Run | Yrd Mat Sub Total 887 | 38 533 316 Wait 29 | . 12 17 Move 696 | 19 406 271 Hop . | . . . Pick Up 28 | 2 19 7 Fast Attach . | . . . Attach 3 | . 2 1 Detach . | . . . Swap 11 | 4 7 . Drop 16 | 7 6 3 Fire 94 | 6 79 9 Melee . | . . . Ram . | . . . Kick . | . . . Crush 10 | . 2 8 Escape Stasis . | . . . Rewire . | . . . Trap . | . . . Miscellaneous . | . . . Route ------- -11/Scrapyard -10/Materials (discovered 3 exits: [*Mat] / [*Min] / *Sub) -10/Subcaves History --------- Turn | Location | Event 8 | -11/Scrapyard | Discovered new exit (range 3) 59 | -11/Scrapyard | Entered Materials 317 | -10/Materials | Build established: Mutant 947 | -10/Materials | Discovered new exit (range 16) 1181 | -10/Materials | Discovered new exit (range 6) 1202 | -10/Materials | Discovered new exit (range 9) 1235 | -10/Materials | Entered Subcaves 1236 | -10/Subcaves | Approached by a straggling Scientist 1258 | -10/Subcaves | Learned location of Zion (-6) 1258 | -10/Subcaves | Met a Zionite searching for "candidates" 1524 | -10/Subcaves | Visited Clippyterm 1531 | -10/Subcaves | Learned Research security intel 1531 | -10/Subcaves | Learned Research machine intel 1817 | -10/Subcaves | Shifting Twisted Machinery released Battle Cannon 1889 | -10/Subcaves | Core integrity fell below 50% 1926 | -10/Subcaves | Core integrity fell below 20% 1960 | -10/Subcaves | Destroyed by WI-3FK(R) with Subdweller Machine Gun Last Messages --------------- destroying it. Battle Cannon falls loose from the Twisted Machinery. 01817_ Subatomizers dissect the Wheel. PM-0JA(c): "I think it's somewhere west of here" 01895_ Lgt. Ion Engine destroyed. PM-0JA(c): "I think it's somewhere west of here" 01911_ PM-0JA(c) destroyed. 01915_ Assault Rifle destroyed. 01923_ Acquired 15 matter. 01924_ Subatomizers dissect the Machine Analyzer. 01936_ Assault Rifle destroyed. 01939_ Slammed into WI-3FK(R). 01947_ Subatomizers dissect the Machine Analyzer. 01947_ Slammed into WI-3FK(R). 01952_ Critical hit (Destroy). 01952_ Lgt. Treads destroyed. 01954_ Slammed into WI-3FK(R). Map ----- +----------------------------------------------------+ | ?????????????????????????????????????????????????? | | ?????????????????????????????????????????????????? | | ?????????????????????????????????????????????????? | | ????????????????????????#????????????????????????? | | ???????????????????????? ????????????????????????? | | ???????????????????????# ???????????????????????? | | ??? ?????????????????## ???????????????????????? | | ??? ##???????????????# ???????????????????????? | | ?? ###?????????????" ???????????????????????? | | #? ###" ????????" ???????????????????????? | | ### " ????????" ???????????????????????? | | ## " ""???###??# ????????????????????????? | | #???????"""""??# ##???????????????????????? | | #?###" ?#""""?? #???????????????????????? | | ### "" ##"""#### #????????????????????????? | | ##% """ ## ###??????????????????????? | | #? """"" ##?????????????????????? | | #?#" # #?????????????????????? | | #### """"### ## % #??????????????????????? | | ### """"### # & ##?????##???????????????? | | ## ###?????# #???????????????? | | % #??????# ????????????????? | | % %###% ###???? #????????????????? | | ## ## #?## # ##??? ##???????????????? | | ### #### ##??# #??? ###?????????????? | | #?# ##??####??## @#### % ##????????????? | | ##?######?????????# ##% R## #????????????? | | #?????????????????## # #?????????????? | | ?????????????????## # % ###???????????????? | | ?????????????##### ## ##?????????????????? | | ?????????????""""""""""" ! ##??????????????????? | | ?????????????? "%# ##???????????????????? | | ????????????? "]##### ##????????????????????? | | ?????????????" #???# #?????????????????????? | | ???????????? "????# ##?????????????????????? | | ??????????? ?????## #??????????????????????? | | ??????????? ???????## ###??????????????????????? | | ?????????????????????####????????????????????????? | | ?????????????????????????????????????????????????? | | ?????????????????????????????????????????????????? | | ?????????????????????????????????????????????????? | | ?????????????????????????????????????????????????? | | ?????????????????????????????????????????????????? | | ?????????????????????????????????????????????????? | | ?????????????????????????????????????????????????? | | ?????????????????????????????????????????????????? | | ?????????????????????????????????????????????????? | | ?????????????????????????????????????????????????? | | ?????????????????????????????????????????????????? | | ?????????????????????????????????????????????????? | +----------------------------------------------------+ Best States ------------- Heat Dissipation 25 Energy Generation 10 Energy Capacity 250 Matter Stores 300 Matter Capacity 300 Sight Range 16 Terrain Scan Density 10 Power Shielding 33 Evasion (%) 40 Recoil Reduction 2 Item Schematics ----------------- None Robot Schematics ------------------ None Fabricated ------------ Nothing Repaired ---------- Nothing Alien Tech Used ----------------- None Achievements -------------- None Challenges ------------ None Game ------ Seed SwordDataSuite Manual? 0 Play Time 00:10:50 Cumulative 45.2 hours Start 2025.07.13 @ 19:44:49 End 2025.07.13 @ 19:53:27 Sessions 1 Manual Loads 0 Difficulty Rogue Special Mode None Game No. 175 Rogue 131 Adventurer 44 Explorer 0 Win Type - Total 1 Types 1/0/0/0/0/0/0/0/0/0 Lore% 57 Gallery% 39 Achievement% 40 Wizard Run 0 Options --------- Layout 1 ASCII 0 Keyboard 0 Movement Mouse Keybinds 0 Fullscreen 1 Font 24/Smallcaps Map View 50x35 Zoom Use 0% Tactical HUD 1 Map Filters NONE Filters NONE Steam 1 RUN: 1b853925-d620-4e93-939f-cc27c8ce55f8